Cogmind - Beta 11 @@@ ROGUE MODE // 2022.03.22 @ 18:44:46 Player: the cat Result: Destroyed by D-53 Grenadier with Mini Grenade Launcher Performance ------------- Evolutions (0) 0 Regions Visited (4) 800 Robots Destroyed (24) 120 Value Destroyed (435) 435 Prototype IDs (1) 20 Alien Tech Used (0) 0 Bonus (-6) -6 TOTAL SCORE: 1369 Bonus ------- Follower Combat Kills 14 Friendly Fire -20 Cogmind --------- Core Integrity 0/250 Matter 259/300 Energy 115/125 System Corruption 0% Temperature Cool (0) Movement Treading (400) Ox3 Location -9/Mines Parts ------- > --- POWER (1) -------- Light Ion Engine > --- PROPULSION (2) --- Light Treads Compact Wheel > --- UTILITY (2) ------ Huge Storage Unit Weight Redist. System > --- WEAPON (2) ------- Heavy Assault Rifle > --- INVENTORY (25) --- Ion Engine Light Treads Light Treads Light Treads Wheel Compact Wheel Compact Wheel Flight Unit Improved Heat Sink Medium Storage Unit Large Storage Unit Large Battery (200) Medium Matter Pod (100) Structural Scanner Experimental Sensor Array Signal Interpreter Hacking Suite Heavy EM Pulse Gun Heavy EM Pulse Gun Heavy Assault Rifle Heavy Assault Rifle Autogun Rocket Launcher Rocket Launcher Peak State ------------ > --- POWER ------------ Light Ion Engine > --- PROPULSION ------- Light Treads Compact Wheel > --- UTILITY ---------- Huge Storage Unit Experimental Sensor Array > --- WEAPON ----------- Heavy Assault Rifle Heavy Assault Rifle > --- INVENTORY -------- Ion Engine Light Treads Light Treads Light Treads Wheel Compact Wheel Compact Wheel Flight Unit Improved Heat Sink Medium Storage Unit Large Storage Unit Large Battery Medium Matter Pod Structural Scanner Sensor Array Signal Interpreter Hacking Suite Heavy EM Pulse Gun Heavy EM Pulse Gun Heavy Assault Rifle Heavy Assault Rifle Autogun Rocket Launcher Rocket Launcher [Rating: 20] Favorites ----------- Power Light Ion Engine Engine Light Ion Engine Propulsion Compact Wheel Treads Light Treads Wheel Compact Wheel Utility Weight Redist. System Device Weight Redist. System Storage Huge Storage Unit Weapon Heavy Assault Rifle Energy Gun Medium Laser Ballistic Gun Heavy Assault Rifle Launcher Rocket Launcher Build | -11 -10 -10 -10 -9 ------- Run | Scr Mat Min Exi Min Slots Evolved . | . . . . . Power . | . . . . . Propulsion . | . . . . . Utility . | . . . . . Weapon . | . . . . . Parts Attached 19 | 6 9 . . 4 Power 3 | 1 2 . . . Engine 3 | 1 2 . . . Core . | . . . . . Reactor . | . . . . . Propulsion 2 | 2 . . . . Treads 1 | 1 . . . . Leg . | . . . . . Wheel 1 | 1 . . . . Hover . | . . . . . Flight . | . . . . . Utility 7 | 1 4 . . 2 Device 4 | . 2 . . 2 Storage 3 | 1 2 . . . Processor . | . . . . . Hackware . | . . . . . Protection . | . . . . . Artifact . | . . . . . Weapon 7 | 2 3 . . 2 Energy Gun 2 | 1 1 . . . Energy Cannon . | . . . . . Ballistic Gun 4 | 1 2 . . 1 Ballistic Cannon . | . . . . . Launcher 1 | . . . . 1 Special Weapon . | . . . . . Impact Weapon . | . . . . . Slashing Weapon . | . . . . . Piercing Weapon . | . . . . . Special Melee Weapon . | . . . . . Unidentified Prototypes 1 | . . . . 1 Parts Lost 2 | . 1 . . 1 Power 1 | . 1 . . . Propulsion . | . . . . . Utility . | . . . . . Weapon 1 | . . . . 1 Highest Loss Streak 1 | . 1 . . 1 To Critical Strikes . | . . . . . Average Slot Usage (%) 99 | . 97 100 100 99 Engine 13 | . 13 14 14 14 Treads 14 | . 14 14 14 14 Wheel 14 | . 14 14 14 14 Device 13 | . 11 14 14 13 Storage 14 | . 14 14 14 14 Energy Gun 1 | . 3 . . . Ballistic Gun 26 | . 24 28 28 27 Naked Turns . | . . . . . Heaviest Build 90 | 12 89 89 89 90 Greatest Support 22 | 16 22 22 22 22 Greatest Overweight (x) 5 | 1 4 4 4 5 Average Overweight (x) 3 | . 2 4 4 4 Largest Inventory Capacity 25 | 8 25 25 25 25 Average Capacity 22 | 7 18 25 25 25 Most Carried 25 | 5 22 22 22 25 Average Carried 18 | 2 13 22 22 23 Final Capacity 25 | 8 25 25 25 25 Final Carried 24 | 4 22 22 22 24 Class Distribution -------------------- 100% | Mutant Dominant Class ---------------- Mutant | -10/Materials Mutant | -10/Mines Mutant | -10/Exiles Mutant | -9/Mines Resources | -11 -10 -10 -10 -9 ----------- Run | Scr Mat Min Exi Min Matter Collected 708 | 223 419 54 . 12 Remotely . | . . . . . Salvage Created 738 | . 555 123 . 60 Parts 54 | . 40 10 . 4 Haulers Intercepted 2 | . 2 . . . Recyclers Shooed . | . . . . . Parts Field Recycled . | . . . . . Retrieved Matter . | . . . . . Parts Self-Destructed . | . . . . . Prevented . | . . . . . Kills | -11 -10 -10 -10 -9 ------- Run | Scr Mat Min Exi Min Combat Hostiles Destroyed 15 | . 12 3 . . Guns 15 | . 12 3 . . Classes Destroyed 8 | . 6 1 . 1 Worker 2 | . 2 . . . Tunneler 1 | . . 1 . . Hauler 2 | . 2 . . . Recycler 1 | . . . . 1 Operator 2 | . 2 . . . Watcher 1 | . 1 . . . Swarmer 7 | . 6 1 . . Grunt 8 | . 6 2 . . Best Kill Streak 7 | . 7 2 . 1 Combat Bots Only 7 | . 7 2 . . Max Kills in Single Turn 2 | . 2 1 . 1 Gunslinging . | . . . . . Exploded . | . . . . . Melee . | . . . . . Uniques/NPCs Destroyed . | . . . . . Combat | -11 -10 -10 -10 -9 -------- Run | Scr Mat Min Exi Min Damage Taken 774 | . 516 96 . 162 Core 254 | . 163 35 . 56 Absorbed by Shields . | . . . . . Core Remaining (%) 100 | 100 . . . . Volleys Fired 61 | . 50 8 . 3 Largest 2 | . 2 2 . 2 Hottest 70 | . 70 46 . 46 Shots Fired 122 | . 100 16 . 6 Gun 122 | . 100 16 . 6 Cannon . | . . . . . Launcher . | . . . . . Special . | . . . . . Kinetic 89 | . 67 16 . 6 Thermal 33 | . 33 . . . Explosive . | . . . . . Electromagnetic . | . . . . . Robot Hit Streak 10 | . 10 4 . 3 Robot Miss Streak 5 | . 5 1 . 1 Penetration Max . | . . . . . Secondary Targets 4 | . 3 1 . . Max Gunslinging Chain 1 | . 1 1 . . Shots Hit Robots 73 | . 60 9 . 4 Core Hits 39 | . 30 7 . 2 Critical Kills . | . . . . . Critical Parts Destroyed 1 | . 1 . . . Critical Strikes 1 | . 1 . . . Destroy 1 | . 1 . . . Melee Attacks . | . . . . . Impact . | . . . . . Slashing . | . . . . . Piercing . | . . . . . Sneak Attacks . | . . . . . Combat Hostiles . | . . . . . Follow-up Attacks . | . . . . . Damage Inflicted 1075 | . 859 157 . 59 Guns 1075 | . 859 157 . 59 Cannons . | . . . . . Explosions . | . . . . . Melee . | . . . . . Ramming . | . . . . . Kinetic 773 | . 557 157 . 59 Thermal 302 | . 302 . . . Explosive . | . . . . . Electromagnetic . | . . . . . Impact . | . . . . . Slashing . | . . . . . Piercing . | . . . . . Highest Corruption . | . . . . . Average Corruption . | . . . . . Corruption Purged . | . . . . . Corruption Blocked . | . . . . . Overload Shots . | . . . . . Overflow Damage . | . . . . . Projectiles . | . . . . . Explosions . | . . . . . Melee . | . . . . . Knockbacks . | . . . . . Impact . | . . . . . Kinetic . | . . . . . Secondary . | . . . . . Self-Inflicted Damage . | . . . . . Shots . | . . . . . Rammed . | . . . . . Targets Rammed . | . . . . . Kicked . | . . . . . Crushed . | . . . . . Highest Temperature 183 | . 183 22 . . Average Temperature 63 | . 68 10 . . Received Heat Transfer 189 | . 123 66 . . Siege Activations . | . . . . . Robots Corrupted . | . . . . . Combat Hostiles . | . . . . . Parts Fried . | . . . . . Impact Corruptions . | . . . . . Robots Melted . | . . . . . Combat Hostiles . | . . . . . Parts Melted 3 | . 3 . . . Heat Transferred 888 | . 888 . . . Parts Sabotaged . | . . . . . Parts Stolen . | . . . . . Parts Stripped . | . . . . . Power Chain Reactions . | . . . . . Missiles Intercepted . | . . . . . Alert | -11 -10 -10 -10 -9 ------- Run | Scr Mat Min Exi Min Peak Influence 286 | . 286 87 . 5 Initial 37 | . . 37 . . Average 76 | . 136 50 . 1 Maximum Alert Level 1 | . 1 . . . Low Security (%) 89 | 100 76 100 . 100 Level 1 10 | . 23 . . . Level 2 . | . . . . . Level 3 . | . . . . . Level 4 . | . . . . . Level 5 . | . . . . . High Security . | . . . . . Max Security . | . . . . . Squads Dispatched 2 | . 2 . . . Investigation . | . . . . . Extermination . | . . . . . Reinforcement 2 | . 2 . . . Assault . | . . . . . Garrison . | . . . . . Intercept . | . . . . . Searches Triggered . | . . . . . Construction Impeded . | . . . . . Haulers Reinforced . | . . . . . Active Scanning Responses . | . . . . . Cargo Convoy Interrupts . | . . . . . Stealth | -11 -10 -10 -10 -9 --------- Run | Scr Mat Min Exi Min Distress Signals . | . . . . . Communications Jammed . | . . . . . Distress Signals . | . . . . . Times Spotted 41 | . 25 5 . 11 Peak Tracking Total 11 | . 4 3 . 11 Tactical Retreats . | . . . . . Traps | -11 -10 -10 -10 -9 ------- Run | Scr Mat Min Exi Min Traps Triggered . | . . . . . Indirectly . | . . . . . Trap Hack Attempts . | . . . . . Triggered . | . . . . . Disarmed . | . . . . . Reprogrammed . | . . . . . Reused . | . . . . . Traps Extracted . | . . . . . Installed . | . . . . . Triggered . | . . . . . Machines | -11 -10 -10 -10 -9 ---------- Run | Scr Mat Min Exi Min Machines Disabled . | . . . . . Max in Single Turn . | . . . . . Machines Sabotaged . | . . . . . Garrisons Compromised . | . . . . . Overloaded Fab Kills . | . . . . . Hacking | -11 -10 -10 -10 -9 --------- Run | Scr Mat Min Exi Min Machines Accessed 9 | . 5 . 4 . Terminals 4 | . 4 . . . Fabricators . | . . . . . Repair Stations . | . . . . . Recycling Units 1 | . 1 . . . Scanalyzers . | . . . . . Garrison Access . | . . . . . Total Hacks 21 | . 17 . 4 . Successful 19 | . 15 . 4 . Failed 2 | . 2 . . . Catastrophic . | . . . . . Database Lockouts . | . . . . . Manual 10 | . 10 . . . Terminals 12 | . 12 . . . Fabricators . | . . . . . Repair Stations . | . . . . . Recycling Units 5 | . 5 . . . Scanalyzers . | . . . . . Garrison Access . | . . . . . Terminal Hacks 12 | . 8 . 4 . Record 4 | . . . 4 . Branch Access Points 1 | . 1 . . . Alert Level 1 | . 1 . . . Locate Traps 3 | . 3 . . . Hauler Manifests 1 | . 1 . . . Zone Layout 2 | . 2 . . . Fabricator Hacks . | . . . . . Repair Station Hacks . | . . . . . Recycling Unit Hacks 2 | . 2 . . . Report Inventory 1 | . 1 . . . Retrieve Matter 1 | . 1 . . . Scanalyzer . | . . . . . Garrison Access Hacks . | . . . . . Unauthorized Hacks 5 | . 5 . . . Terminals 2 | . 2 . . . Track 1 | . 1 . . . Operators 1 | . 1 . . . Fabricators . | . . . . . Repair Stations . | . . . . . Recycling Units 3 | . 3 . . . Monitor 1 | . 1 . . . Reject 1 | . 1 . . . Recyclers 1 | . 1 . . . Scanalyzers . | . . . . . Garrison Access . | . . . . . Data Cores Recovered . | . . . . . Used . | . . . . . Hacking Detections 5 | . 5 . . . Full Trace Events . | . . . . . Feedback Events . | . . . . . Feedback Blocked . | . . . . . Robot Schematics Acquired . | . . . . . Robots Built . | . . . . . Authchips . | . . . . . Time . | . . . . . Total Robot Build Rating . | . . . . . Part Schematics Acquired . | . . . . . Parts Built . | . . . . . Authchips . | . . . . . Time . | . . . . . Total Part Build Rating . | . . . . . Parts Repaired . | . . . . . Time . | . . . . . Parts Recycled . | . . . . . Recycled Matter . | . . . . . Retrieved Matter . | . . . . . Retrieved Components . | . . . . . Parts Scanalyzed . | . . . . . Part Schematics Acquired . | . . . . . Parts Damaged . | . . . . . Bothacking | -11 -10 -10 -10 -9 ------------ Run | Scr Mat Min Exi Min Used RIF Installer . | . . . . . Robots Hacked . | . . . . . Non-combat . | . . . . . Combat . | . . . . . Robot Hacks Applied . | . . . . . Relay Couplers Released . | . . . . . Fabnet Peak Effective % . | . . . . . Robots Rewired . | . . . . . Allies Hacked . | . . . . . Hacks Repelled . | . . . . . Allies | -11 -10 -10 -10 -9 -------- Run | Scr Mat Min Exi Min Total Allies 4 | . . 1 . 3 Largest Group 3 | . . 1 . 3 Highest-Rated Group 40 | . . 31 . 40 Highest-Rated Ally 31 | . . 31 . 16 Total Orders . | . . . . . Ally Attacks 12 | . . 4 . 8 Total Damage 141 | . . 64 . 77 Kills 2 | . . 2 . . Allies Corrupted . | . . . . . Allies Melted . | . . . . . Intel | -11 -10 -10 -10 -9 ------- Run | Scr Mat Min Exi Min Robot Analysis Total . | . . . . . Derelict Logs Recovered 1 | . . 1 . . Drone Launches . | . . . . . Drone Recoveries . | . . . . . Exploration | -11 -10 -10 -10 -9 ------------- Run | Scr Mat Min Exi Min Turns Passed 3326 | 67 1058 732 935 534 Spaces Moved 2004 | 51 630 420 585 318 Core 2 | 2 . . . . Treads . | . . . . . Legs . | . . . . . Wheels 2002 | 49 630 420 585 318 Hover . | . . . . . Flight . | . . . . . Fastest Speed 50 | 50 100 160 160 160 Average Speed 150 | 99 135 160 160 160 Slowest Speed 175 | 100 160 160 160 175 Overloaded Moves . | . . . . . Propulsion Burnouts . | . . . . . Robots Hopped . | . . . . . Cave-ins Triggered . | . . . . . Exploration Rate (%) 59 | 4 85 69 92 47 Regions Visited 4 Branch Regions 3 Pre-discovered Areas . | . . . . . Known Exits Taken 1 | . 1 . . . Unknown Exits Taken 3 | 1 . 1 1 . Scrap Searched 3 | . . 2 . 1 Spaces Dug . | . . . . . Terrain Destroyed . | . . . . . Melee . | . . . . . Projectile . | . . . . . AOE . | . . . . . Terrain Rammed . | . . . . . Walls Destroyed . | . . . . . Machines Disabled . | . . . . . Actions | -11 -10 -10 -10 -9 --------- Run | Scr Mat Min Exi Min Total 2182 | 64 733 464 584 337 Wait 59 | 2 16 37 . 4 Move 2000 | 50 629 419 584 318 Hop . | . . . . . Pick Up 29 | 5 21 . . 3 Fast Attach 13 | 6 5 . . 2 Attach 1 | . 1 . . . Detach 1 | . . . . 1 Swap 5 | . 3 . . 2 Drop 12 | 1 8 . . 3 Fire 61 | . 50 8 . 3 Melee . | . . . . . Ram . | . . . . . Kick . | . . . . . Crush . | . . . . . Escape Stasis . | . . . . . Rewire 1 | . . . . 1 Trap . | . . . . . Miscellaneous . | . . . . . Route ------- -11/Scrapyard -10/Materials (discovered 4 exits: [*Mat x3] / *Min) -10/Mines (discovered 2 exits: [*Mat] / *Exi) -10/Exiles -9/Mines History --------- Turn | Location | Event 26 | -11/Scrapyard | Discovered new exit (range 16) 68 | -11/Scrapyard | Entered Materials 204 | -10/Materials | Destroyed 7 combat bots 251 | -10/Materials | Discovered new exit (range 10) 308 | -10/Materials | Discovered new exit (range 16) 317 | -10/Materials | Build established: Mutant 321 | -10/Materials | Core integrity fell below 50% 470 | -10/Materials | Discovered new exit (range 12) 659 | -10/Materials | Identified exit to Mines 1126 | -10/Materials | Entered Mines 1166 | -10/Mines | Deemed a non-threat by the Exiles lab entrance 1168 | -10/Mines | Discovered new exit (range 5) 1235 | -10/Mines | Discovered new exit (range 12) 1503 | -10/Mines | Learned Materials emergency access door positions 1506 | -10/Mines | Found a hidden stash of uninstalled traps 1521 | -10/Mines | Received a Mining Laser from a helpful Derelict 1858 | -10/Mines | Entered Exiles 1858 | -10/Exiles | Found Exiles lab abandoned 2774 | -10/Exiles | Discovered new exit (range 14) 2793 | -10/Exiles | Entered Mines 2795 | -9/Mines | Assisted by bots powering up and referring to "LRC-V3" 2845 | -9/Mines | Received a Rocket Launcher from a helpful Derelict 3192 | -9/Mines | Found a damaged Exp. Sensor Array with a note attached 3196 | -9/Mines | Found Prototype Device 3196 | -9/Mines | Identified Exp. Sensor Array 3289 | -9/Mines | Assembled infested the area 3314 | -9/Mines | Core integrity fell below 20% 3327 | -9/Mines | Destroyed by D-53 Grenadier with Mini Grenade Launcher Last Messages --------------- 03197_ Dropped Sensor Array. 03200_ Acquired Weight Redist. System. 03289_ ALERT: Infestation in the mines, dispatching Demolisher response squad. 03313_ C-30 ARC bursts open, deploying its payload. 03313_ D-53 Grenadier unfolds itself. 03315_ The unstable cave ceiling collapses. 03316_ Trooper 2b destroyed. 03317_ Mercenary 2a destroyed. 03318_ Trooper 2a destroyed. 03318_ as-56477 destroyed. 03318_ as-62742 destroyed. 03321_ as-17073 destroyed. 03321_ as-34272 destroyed. 03321_ as-66122 destroyed. 03321_ as-69663 destroyed. 03321_ as-10369 destroyed. 03323_ as-98272 destroyed. 03323_ as-60505 destroyed. 03325_ Hvy. Assault Rifle destroyed. Map ----- +----------------------------------------------------+ | ##??????????????????????????????????# ##### | | #????????????????????????????????????# | | #####????????????????????????????????# ##### | | #????????????????????????????????########?### | | #???????????????????????????????????????### | | #### #??????????????????????????????????????## | | ???# ######????????????????????????????????## | | ???# #????????????????????????????????# | | ???###### #????????????????????????????????# | | ????????# #????????????????????????????????## # | | ????????# ######????????????????????????????## # | | ????????# ##????????###????????????????## # | | ????????# =##??????# #????????????????# | | ????????##### [##????# #???????????????## | | ????????????# = ##### #?################ | | ????????????##### [ #??# !% ! | | ????????????????## ##### ############## # | | ?????????????????# [ ### #????????????###### | | ?????????????????## ##?# [ #?????????????????? | | ??????????????????## ##??# ####?????????????????? | | ?????????########### #???# ###??????????????????? | | ?????????# ##### ##?????????????????? | | ?????????# ######### ## # #?????????????????? | | ?????????# #???????# # #?????????????????? | | ?????????# #??????## # ##?????????????????? | | ?????????# #??????# @ ##?????????????????? | | ?????????# #??????# #####?????????????? | | ?????????# #??????# # ##????????????? | | ???????### ######## # #????????????? | | ?####### ## ] #????????????? | | ?# " dd ##????????????? | | ?# "%" = ##?????????????? | | ?# ###### ### ## ##?????????????? | | ?# #????### #?## ### = #?????????????? | | ?# #??????# #??####?## = #?????????????? | | ?# #??????# #???????### #?????????????? | | ?# #??????# #????????## ???????????? | | ?# #??????# #????????? # ?????????? | | ## ##?????# ????????######?#### ????????? | | ####### ??????????????????? ?????????? | | ????????????????????????????? | | ????????????????????????????? | | ####### ## ?????????????????????????????? | | # #?????? #????????????????????????????????? | | ### ##?????? #????????????????????????????????? | | ??# #??????? ??????????????????????????????????? | | ??# #???????????????????????????????????????????? | | ??# #???????????????????????????????????????????? | | ??# #???????????????????????????????????????????? | | ??? ???????????????????????????????????????????? | +----------------------------------------------------+ Best States ------------- Heat Dissipation 25 Energy Generation 10 Energy Capacity 125 Matter Stores 300 Matter Capacity 300 Sight Range 16 Terrain Scan Density 10 Additional Mass Support 6 Evasion (%) 40 Recoil Reduction 1 Item Schematics ----------------- None Robot Schematics ------------------ None Fabricated ------------ Nothing Alien Tech Used ----------------- None Achievements -------------- None Challenges ------------ None Game ------ Seed VisualMobileSystem Manual? 0 Play Time 00:17:06 Cumulative 165.5 hours Start 2022.03.22 @ 18:14:31 End 2022.03.22 @ 18:44:46 Sessions 1 Manual Loads 0 Difficulty Rogue Special Mode None Game No. 51 Rogue 34 Adventurer 17 Explorer 0 Win Type - Total 9 Types 6/0/2/1/0/0/0/0/0 Lore% 63 Gallery% 64 Achievement% 61 Wizard Run 0 Options --------- ASCII 0 Keyboard 0 Movement Arrows Keybinds 0 Fullscreen 1 Font 28/Dina Map View 72x54 Tactical HUD 1 Map Filters NONE Filters NONE Steam 1 RUN: 58b0de6e-d987-45a2-af9b-4a9fe2d50d8a